bitfinex-derivatives/quotes_SOLF0:USTF0_20220110
["timestamp","ask_amount","ask_price","bid_price","bid_amount"]
[1641820733774,2.02907851,135.73,135.64,12.89311074]
[1641820734373,17.46284076,135.74,135.65,4.17111074]
[1641820734775,2.02907851,135.72,135.65,4.17111074]
[1641820734976,4.0,135.71,135.65,4.17111074]
[1641820735178,4.74643497,135.73,135.64,4.17111074]
[1641820735576,2.02907851,135.72,135.62,9.20875384]
[1641820735778,18.15111871,135.7,135.62,9.20875384]
[1641820735983,18.15111871,135.7,135.62,13.20875384]
[1641820736176,18.15111871,135.7,135.63,4.17111074]
[1641820736377,18.15111871,135.7,135.63,14.51411074]
[1641820736579,2.02907851,135.69,135.64,5.89780203]
[1641820736778,2.71735646,135.71,135.65,9.89735733]
[1641820736979,2.71735646,135.71,135.66,24.0]
[1641820737176,2.71735646,135.71,135.67,1.842]
[1641820737376,15.43376225,135.73,135.68,5.89616408]
[1641820738379,1.62560068,135.72,135.69,4.17092064]
[1641820738579,1.62560068,135.72,135.69,10.18292064]
[1641820738978,1.62560068,135.74,135.69,10.18292064]
[1641820739181,17.05936293,135.74,135.69,10.18292064]
[1641820739381,15.43376225,135.74,135.7,4.17092064]
[1641820739580,41.25768509,135.77,135.7,10.06627186]
[1641820739779,1.62545342,135.73,135.7,10.06627186]
[1641820739981,41.25768509,135.77,135.7,10.06627186]
[1641820740180,41.25768509,135.77,135.7,7.73635122]
[1641820740880,41.25768509,135.78,135.7,7.73635122]
[1641820741180,41.25768509,135.78,135.7,5.89535122]
[1641820741382,0.83414239,135.77,135.71,4.17071195]
[1641820743281,0.83414239,135.79,135.72,4.0]
[1641820743483,0.83414239,135.79,135.72,10.989]
[1641820743682,0.83414239,135.76,135.72,10.989]
[1641820744085,0.83414239,135.79,135.73,4.17071195]
[1641820745883,4.0,135.78,135.72,4.17071195]
[1641820746284,11.397,135.79,135.72,4.17071195]
[1641820746482,0.83414239,135.77,135.71,4.17071195]
[1641820746884,0.83414239,135.78,135.69,65.4628]
[1641820747284,4.83414239,135.78,135.69,65.4628]
[1641820747484,0.83414239,135.78,135.7,4.17089862]
[1641820749686,0.83414239,135.78,135.71,1.841]
[1641820749885,0.83414239,135.78,135.71,9.36]
[1641820750086,0.83414239,135.78,135.71,15.25458408]
[1641820750286,0.83414239,135.78,135.72,4.17089862]
[1641820751187,0.83414239,135.81,135.72,4.17089862]
[1641820752086,0.83414239,135.82,135.72,4.17089862]
[1641820752488,0.83414239,135.82,135.73,20.0]
[1641820752687,42.09182748,135.83,135.73,20.0]
[1641820753088,42.09182748,135.83,135.72,14.82689862]
[1641820753289,0.83414239,135.82,135.74,4.17089862]
[1641820753788,0.83414239,135.82,135.73,4.17089862]
[1641820754190,0.83414239,135.82,135.75,4.17089862]
[1641820754690,0.83414239,135.83,135.73,4.17089862]
[1641820754891,0.83414239,135.83,135.72,8.242]
[1641820755090,0.83414239,135.81,135.72,6.401]
[1641820755589,0.83414239,135.82,135.73,4.17068457]
[1641820755791,0.83414239,135.8,135.73,4.17068457]
[1641820756190,7.19714239,135.8,135.73,4.17068457]
[1641820756391,6.363,135.8,135.72,4.17068457]
[1641820756792,4.83414239,135.79,135.72,4.17068457]
[1641820756993,0.83414239,135.79,135.72,4.17068457]
[1641820757192,4.83414239,135.79,135.72,4.17068457]
[1641820757395,0.83414239,135.78,135.7,4.17068457]
[1641820757793,0.83414239,135.78,135.69,65.4628]
[1641820757993,0.83414239,135.78,135.7,7.36241487]
[1641820758193,0.83414239,135.79,135.72,7.36133093]
[1641820758393,4.83414239,135.79,135.71,1.841]
[1641820758594,18.23481101,135.79,135.7,4.17045931]
[1641820758793,17.40066862,135.79,135.67,142.9564]
[1641820758993,4.0,135.78,135.67,142.9564]
[1641820759192,4.83414239,135.78,135.71,4.17142657]
[1641820759395,0.83414239,135.78,135.71,4.17142657]
[1641820759595,0.83414239,135.77,135.68,4.17142657]
[1641820760198,0.83414239,135.78,135.68,4.17142657]
[1641820760499,4.83414239,135.78,135.68,4.17142657]
[1641820761099,4.0,135.76,135.68,4.17142657]
[1641820761599,0.83414239,135.75,135.68,4.17142657]
[1641820761898,4.0,135.73,135.68,4.17142657]
[1641820762097,4.0,135.71,135.68,4.17142657]
[1641820762300,4.0,135.7,135.68,4.17142657]
[1641820762497,0.83414239,135.7,135.64,4.17142657]
[1641820763298,0.83414239,135.7,135.63,4.17142657]
[1641820763898,4.83414239,135.71,135.63,4.17142657]
[1641820764299,0.83414239,135.69,135.63,4.17142657]
[1641820764700,0.83414239,135.7,135.63,4.17142657]
[1641820765702,47.09968509,135.74,135.63,4.17142657]
[1641820765703,0.83414239,135.72,135.63,4.17142657]
[1641820765901,0.83414239,135.72,135.63,8.17142657]
[1641820766101,0.83414239,135.73,135.63,4.17142657]
[1641820766301,0.83414239,135.73,135.62,80.2512693]
[1641820766501,0.83414239,135.73,135.62,1.842]
[1641820766701,11.37028302,135.71,135.62,1.842]
[1641820766902,11.37028302,135.71,135.59,11.0]
[1641820767102,11.37028302,135.71,135.6,4.0]
[1641820767302,41.25768509,135.73,135.61,4.0]
[1641820767705,41.25768509,135.73,135.6,13.26723265]
[1641820767903,45.25768509,135.73,135.6,13.26723265]
[1641820768103,7.37001142,135.71,135.62,4.17251587]
[1641820768303,12.65159931,135.72,135.62,4.17251587]
[1641820768504,4.0,135.71,135.62,4.17251587]
[1641820768703,4.0,135.71,135.61,4.17251587]
[1641820768704,1.28213102,135.7,135.61,4.17251587]
[1641820769806,1.28213102,135.7,135.6,30.07207739]
[1641820770007,1.28213102,135.71,135.62,4.17251587]
[1641820770208,1.28213102,135.71,135.62,18.25416938]
[1641820770607,1.28213102,135.71,135.63,6.01451587]
[1641820770807,1.28213102,135.71,135.63,10.01451587]
[1641820771009,1.28213102,135.73,135.64,10.07027784]
[1641820771211,1.28213102,135.73,135.64,80.57147784]
[1641820771610,1.28213102,135.73,135.65,4.17251587]
[1641820771910,1.28213102,135.73,135.65,13.57051587]
[1641820772109,1.28213102,135.74,135.66,5.89688387]
[1641820772312,1.28213102,135.74,135.66,7.73888387]
[1641820772512,1.28213102,135.74,135.67,4.17251587]
[1641820772810,1.28213102,135.74,135.67,28.17251587]
[1641820773011,1.28213102,135.74,135.67,24.17251587]
[1641820773212,1.28213102,135.74,135.67,28.17251587]
[1641820773412,1.28213102,135.74,135.69,5.89574387]
[1641820773614,1.28213102,135.74,135.7,1.842]
[1641820773813,1.28213102,135.78,135.7,6.01451587]
[1641820774314,1.28213102,135.78,135.71,4.17251587]
[1641820774712,1.28213102,135.79,135.71,4.17251587]
[1641820775514,1.28213102,135.82,135.71,4.17251587]
[1641820777015,1.28213102,135.82,135.71,8.17251587]
[1641820777214,1.28213102,135.82,135.73,24.0]
[1641820777416,1.28213102,135.82,135.73,29.805]
[1641820777819,1.28213102,135.82,135.75,5.89284107]
[1641820778018,1.28213102,135.82,135.76,25.841]
[1641820778217,1.28213102,135.82,135.77,5.89199664]
[1641820778418,1.28213102,135.82,135.78,1.841]
[1641820778718,1.28213102,135.85,135.78,10.01351587]
[1641820778925,15.54543558,135.89,135.79,5.8911067]
[1641820779120,15.54543558,135.89,135.8,1.84]
[1641820779321,15.54543558,135.89,135.8,6.01251587]
[1641820779518,1.69646508,135.88,135.8,10.01251587]
[1641820779720,1.69646508,135.88,135.81,5.89024268]
[1641820780019,1.69646508,135.88,135.82,1.84]
[1641820780219,1.69646508,135.88,135.82,9.998]
[1641820780422,1.69646508,135.88,135.82,14.17051587]
[1641820780819,1.69646508,135.9,135.83,4.17251587]
[1641820782023,1.69646508,135.91,135.83,4.17251587]
[1641820782220,1.69646508,135.91,135.83,6.01151587]
[1641820783026,1.69646508,135.91,135.84,4.17251587]
[1641820783425,1.69646508,135.94,135.84,4.17251587]
[1641820784026,1.69646508,135.94,135.84,1.839]
[1641820784827,1.69646508,135.95,135.85,4.17251587]
[1641820785027,1.69646508,135.95,135.85,74.98701587]
[1641820785827,1.69646508,135.96,135.86,4.17251587]
[1641820786032,1.69646508,135.96,135.88,9.88719484]
[1641820786232,1.69646508,135.94,135.89,1.839]
[1641820786530,1.69646508,135.94,135.89,7.72576002]
[1641820786732,1.69646508,135.97,135.9,4.17251587]
[1641820787530,1.69646508,135.99,135.9,10.92451587]
[1641820787732,1.69646508,135.99,135.91,7.72413675]
[1641820787932,1.69646508,135.99,135.93,5.88537131]
[1641820788236,1.69646508,135.99,135.93,12.19137131]
[1641820788433,6.508e-05,136.02,135.95,24.0]
[1641820788632,6.508e-05,136.02,135.95,27.72214964]
[1641820789235,6.508e-05,136.02,135.95,5.88414964]
[1641820789437,4.0,136.04,135.94,1.838]
[1641820789634,4.0,136.03,135.93,8.144]
[1641820789834,4.0,136.03,135.92,5.88559676]
[1641820790037,4.0,136.02,135.95,4.16367745]
[1641820790437,5.18376318,136.02,135.93,4.16367745]
[1641820790837,5.18376318,136.01,135.93,4.16367745]
[1641820791038,4.0,136.0,135.93,4.16367745]
[1641820791237,1.18376318,136.01,135.93,4.16367745]
[1641820791438,4.0,135.98,135.92,4.16367745]
[1641820791738,4.0,135.96,135.92,4.16367745]
[1641820792036,7.232,135.98,135.94,4.16367745]
[1641820792237,1.18376318,135.95,135.93,4.16367745]
[1641820792837,4.0,135.96,135.91,4.16367745]
[1641820793442,1.18376318,135.95,135.91,4.16367745]
[1641820793639,10.04276318,135.95,135.91,4.16367745]
[1641820793839,10.04276318,135.95,135.88,4.16367745]
[1641820794441,1.18376318,135.94,135.87,4.16367745]
[1641820794645,1.18376318,135.94,135.89,24.0]
[1641820795041,1.18376318,135.94,135.89,33.294]
[1641820795241,1.18376318,136.01,135.9,4.16367745]
[1641820796142,1.18376318,136.01,135.91,5.88582617]
[1641820796342,1.18376318,136.01,135.91,7.72382617]
[1641820796541,1.18376318,136.01,135.92,24.16367745]
[1641820796742,1.18376318,136.01,135.93,1.838]
[1641820796943,1.18376318,136.03,135.93,6.00167745]
[1641820797142,1.18376318,136.03,135.94,5.88452476]
[1641820797545,1.18376318,136.03,135.95,4.16367745]
[1641820798146,1.18376318,136.03,135.96,24.0]
[1641820798945,1.18376318,136.03,135.97,5.88364226]
[1641820799145,1.18376318,136.03,135.97,11.72164226]
[1641820799345,1.18376318,136.03,135.98,5.88278782]
[1641820799645,1.18376318,136.03,135.97,1.838]
[1641820799846,10.00876318,136.03,135.96,24.0]
[1641820800446,10.00876318,136.03,135.97,4.16348539]
[1641820800746,1.18376318,136.02,135.97,4.16348539]
[1641820801146,9.25476318,136.02,135.97,4.16348539]
[1641820801546,1.18376318,136.01,135.93,7.06204895]
[1641820801746,1.18376318,136.01,135.9,73.6135]
[1641820801946,1.18376318,136.01,135.94,4.16435894]
[1641820802649,1.18376318,136.01,135.91,4.16435894]
[1641820802848,1.18376318,136.02,135.95,4.16435894]
[1641820803450,1.18376318,136.02,135.96,7.72203989]
[1641820803651,1.18376318,136.02,135.96,5.88403989]
[1641820803852,1.18376318,136.04,135.96,10.04839883]
[1641820804253,1.18376318,136.01,135.97,4.16435894]
[1641820804453,1.18376318,136.01,135.97,10.59435894]
[1641820804655,1.18376318,136.03,135.97,10.59435894]
[1641820805153,1.18376318,136.06,135.98,4.16435894]
[1641820805955,1.18376318,136.06,135.96,4.16435894]
[1641820807154,2.7055014,136.05,135.96,4.16435894]
[1641820807955,1.18376318,136.04,135.96,8.16435894]
[1641820808158,1.18376318,136.04,135.96,14.04825317]
[1641820808357,1.18376318,136.04,135.99,5.88263494]
[1641820808555,1.18376318,136.04,135.99,12.68063494]
[1641820808958,1.18376318,136.04,136.0,4.16435894]
[1641820809458,1.18376318,136.05,136.0,4.16435894]
[1641820809856,1.18376318,136.05,136.01,24.0]
[1641820810057,1.18376318,136.05,136.0,10.04661062]
[1641820810258,1.18376318,136.08,136.02,4.16435894]
[1641820810859,1.18376318,136.08,136.01,4.16435894]
[1641820811061,12.32476318,136.08,136.01,4.16435894]
[1641820811259,8.32476318,136.08,135.99,70.0645]
[1641820811662,19.44051589,136.07,136.0,4.16231632]
[1641820812161,1.18376318,136.06,136.0,4.16231632]
[1641820812560,3.89508031,136.06,136.0,4.16231632]
[1641820812962,1.18376318,136.05,136.0,4.16231632]
[1641820813162,8.86076318,136.05,136.0,4.16231632]
[1641820813862,1.18376318,136.04,136.0,4.16231632]
[1641820814763,1.18376318,136.06,136.0,4.16231632]
[1641820815365,16.72919876,136.06,136.0,4.16231632]
[1641820815764,1.18376318,136.05,136.0,4.16231632]
[1641820816763,7.87476318,136.05,136.0,4.16231632]
[1641820817165,6.691,136.05,136.0,4.16231632]
[1641820817565,1.18376318,136.04,136.0,4.16231632]
[1641820817965,3.8999046,136.04,136.0,4.16231632]
[1641820818365,1.18376318,136.03,136.0,4.16231632]
[1641820818966,3.8999046,136.03,136.0,4.16231632]
[1641820819169,15.6609046,136.03,135.98,7.564]
[1641820819567,4.0,136.01,135.98,7.564]
[1641820820667,2.43608209,136.0,135.98,7.564]
[1641820820869,5.15352818,136.0,135.98,7.564]
[1641820821467,2.43608209,135.99,135.98,7.564]
[1641820821869,5.15352818,135.99,135.98,7.564]
[1641820822268,12.01752818,135.99,135.98,7.564]
[1641820822670,9.30008209,135.99,135.98,0.0001]
[1641820822868,13.30008209,135.99,135.98,0.0001]
[1641820823472,20.65572755,135.99,135.98,0.0001]
[1641820823669,38.91955098,135.99,135.86,28.38343558]
[1641820823870,4.0,135.96,135.86,15.54543558]
[1641820824070,4.0,135.95,135.86,15.54543558]
[1641820824371,8.282,135.96,135.86,15.54543558]
[1641820824574,12.282,135.96,135.86,15.54543558]
[1641820824772,8.282,135.96,135.85,15.28]
[1641820824973,2.4375399,135.95,135.88,4.0]
[1641820825173,2.4375399,135.95,135.88,20.38820928]
[1641820825574,2.4375399,135.95,135.88,16.38820928]
[1641820825775,2.4375399,135.96,135.89,4.16533967]
[1641820825976,2.4375399,135.96,135.89,6.62287567]
[1641820826177,6.4375399,135.96,135.89,6.62287567]
[1641820826776,2.4375399,135.95,135.9,4.16533967]
[1641820827176,4.0,135.97,135.88,4.16533967]
[1641820827378,21.98297548,135.98,135.88,4.16533967]
[1641820827580,2.4375399,135.96,135.86,4.16533967]
[1641820828178,2.4375399,135.97,135.86,4.16533967]
[1641820828679,2.4375399,135.97,135.87,2.45619291]
[1641820829484,2.4375399,135.97,135.88,4.16533967]
[1641820829683,6.4375399,135.97,135.88,4.16533967]
[1641820830384,6.4375399,135.96,135.88,4.16533967]
[1641820830684,2.4375399,135.96,135.88,4.16533967]
[1641820830887,2.4375399,135.95,135.86,4.16533967]
[1641820831085,2.4375399,135.95,135.88,5.88741018]
[1641820831289,2.4375399,135.97,135.89,1.839]
[1641820831484,2.4375399,135.97,135.88,14.80241018]
[1641820831885,2.4375399,135.98,135.9,4.16533967]
[1641820832286,2.4375399,135.98,135.89,71.54623967]
[1641820832787,2.4375399,135.98,135.9,4.16533967]
[1641820833587,2.4375399,135.99,135.9,4.16533967]
[1641820834087,6.4375399,135.99,135.9,4.16533967]
[1641820834286,2.4375399,135.99,135.9,4.16533967]
[1641820835491,2.4375399,135.99,135.91,5.88598908]
[1641820835887,2.4375399,136.0,135.92,4.16533967]
[1641820836187,2.4375399,136.0,135.93,9.88516432]
[1641820836387,2.4375399,136.0,135.94,5.838]
[1641820836588,2.4375399,136.0,135.96,20.0]
[1641820836787,15.54543558,136.02,135.96,20.0]
[1641820836788,15.54543558,136.02,135.97,5.88351635]
[1641820836987,15.54543558,136.02,135.97,1.838]
[1641820837389,15.54543558,136.02,135.95,1.838]
[1641820838088,6.71376776,136.05,135.95,1.838]
[1641820838288,3.19162737,136.01,135.96,4.16247096]
[1641820839192,3.19162737,136.02,135.93,4.16247096]
[1641820839994,3.19162737,136.02,135.93,75.65957096]
[1641820840192,7.19162737,136.02,135.93,75.65957096]
[1641820840393,4.0,136.0,135.93,75.65957096]
[1641820840593,4.0,135.99,135.94,4.16247096]
[1641820840795,4.0,135.98,135.94,4.16247096]
[1641820840993,4.0,135.98,135.9,75.42487096]
[1641820840994,4.0,135.97,135.9,75.42487096]
[1641820841193,11.497,135.97,135.9,75.42487096]
[1641820841394,7.497,135.97,135.9,75.42487096]
[1641820841594,3.19162737,135.96,135.91,4.16247096]
[1641820844193,3.19162737,135.96,135.92,5.88564485]
[1641820844395,7.497,135.97,135.93,1.839]
[1641820844694,15.54543558,136.03,135.94,5.88478472]
[1641820845096,15.54543558,136.03,135.95,24.0]
[1641820845393,15.54543558,136.03,135.95,29.643]
[1641820845595,1.99076305,136.02,135.96,4.16247096]
[1641820846500,1.99076305,136.03,135.96,4.16247096]
[1641820846694,7.828,136.02,135.96,4.16247096]
[1641820846895,11.828,136.02,135.96,4.16247096]
[1641820847295,4.0,135.99,135.96,4.16247096]
[1641820847696,4.0,135.98,135.96,4.16247096]
[1641820847896,5.99076305,135.98,135.95,7.805]
[1641820848296,4.0,135.97,135.95,7.805]
[1641820848598,4.0,135.96,135.9,71.2624]
[1641820848796,5.99076305,135.96,135.9,71.2624]
[1641820849298,1.99076305,135.95,135.91,4.1647827]
[1641820850403,5.99076305,135.95,135.91,4.1647827]
[1641820850599,4.0,135.94,135.91,4.1647827]
[1641820851102,1.99076305,135.93,135.87,4.1647827]
[1641820852003,1.99076305,135.93,135.88,2.46055313]
[1641820852204,4.0,135.92,135.88,2.46055313]
[1641820852405,12.672,135.92,135.88,2.46055313]
[1641820852606,14.66276305,135.92,135.89,4.1647827]
[1641820853007,4.0,135.9,135.89,8.27e-05]
[1641820853505,5.99076305,135.9,135.84,8.27e-05]
[1641820853707,4.0,135.89,135.84,8.27e-05]
[1641820853908,12.441,135.89,135.84,8.27e-05]
[1641820854305,12.441,135.89,135.83,2.46063189]
[1641820854306,1.99076305,135.88,135.83,2.46071459]
[1641820855307,1.99076305,135.88,135.83,6.46071459]
[1641820855514,6.305e-05,135.88,135.83,32.35009233]
[1641820855711,4.0,135.97,135.85,11.35429307]
[1641820855712,15.54543558,135.94,135.85,11.35429307]
[1641820855908,15.54543558,135.94,135.85,25.86475012]
[1641820856109,15.54543558,135.94,135.86,1.839]
[1641820856309,15.54543558,135.94,135.86,5.839]
[1641820856709,4.0,135.97,135.86,19.84506747]
[1641820856910,4.0,135.94,135.86,19.84506747]
[1641820857110,4.0,135.93,135.86,18.00606747]
[1641820857310,4.0,135.93,135.87,4.16521567]
[1641820857709,4.0,135.91,135.87,4.16521567]
[1641820857909,9.111,135.91,135.87,4.16521567]
[1641820858310,2.42710081,135.9,135.84,4.0]
[1641820858514,2.42710081,135.9,135.85,4.0]
[1641820858711,9.111,135.91,135.88,4.16521567]
[1641820859110,9.111,135.91,135.87,4.16521567]
[1641820860614,0.0001,135.91,135.88,2.45787871]
[1641820861413,0.0001,135.91,135.89,4.16521567]
[1641820862313,0.0001,135.91,135.87,4.16521567]
[1641820864917,0.0001,135.91,135.88,2.45772498]
[1641820865216,0.0001,135.91,135.89,4.16521567]
[1641820866816,0.0001,135.91,135.88,4.16521567]
[1641820867219,0.0001,135.91,135.9,4.16521567]
[1641820867618,0.0001,135.91,135.88,4.16521567]
[1641820868320,0.0001,135.91,135.87,4.16521567]
[1641820868520,4.71083838,135.96,135.87,4.16521567]
[1641820868721,1.99136835,135.95,135.89,4.16521567]
[1641820868919,1.99136835,135.95,135.89,6.62384215]
[1641820869120,1.99136835,135.96,135.89,2.45862648]
[1641820869522,1.99136835,135.96,135.9,4.16521567]
[1641820870123,1.99136835,135.96,135.87,4.16521567]
[1641820870324,10.04936835,135.96,135.87,4.16521567]
[1641820870625,10.04936835,135.96,135.87,8.16521567]
[1641820870924,1.99136835,135.95,135.88,5.88753878]
[1641820871425,1.99136835,135.95,135.89,4.16521567]
[1641820871923,1.99136835,135.96,135.9,2.45945215]
[1641820872323,1.99136835,135.96,135.91,4.16521567]
[1641820873427,1.99136835,135.98,135.9,10.05177099]
[1641820873825,1.99136835,135.98,135.91,4.16521567]
[1641820874426,1.99136835,135.99,135.91,4.16521567]
[1641820874831,1.99136835,135.97,135.91,11.88221567]
[1641820875028,1.99136835,135.97,135.92,25.88577646]
[1641820875228,15.54543558,136.0,135.95,4.0]
[1641820875428,15.54543558,136.02,135.95,18.39111515]
[1641820875629,15.54543558,136.02,135.95,20.22911515]
[1641820876830,15.54543558,136.02,135.96,4.16229581]
[1641820877230,7.35213028,136.04,135.96,4.16229581]
[1641820877231,2.71862637,136.03,135.96,4.16229581]
[1641820877631,2.71862637,136.03,135.96,10.04629266]
[1641820877929,2.71862637,136.03,135.96,11.88429266]
[1641820878130,2.71862637,136.03,135.97,4.16229581]
[1641820878332,15.54543558,136.05,135.97,6.62073755]
[1641820878333,4.0,136.04,135.97,6.62073755]
[1641820878529,4.0,136.03,135.97,6.62073755]
[1641820879129,4.0,136.01,135.94,15.54543558]
[1641820879429,4.0,136.01,135.93,68.0024]
[1641820879629,4.0,136.01,135.95,4.16343629]
[1641820879930,4.0,136.01,135.94,4.16343629]
[1641820880231,6.71862637,136.0,135.94,4.16343629]
[1641820880629,4.0,135.99,135.94,4.16343629]
[1641820881229,4.0,135.99,135.93,4.16343629]
[1641820881732,4.0,136.0,135.93,4.16343629]
[1641820883634,6.7188816,135.99,135.93,4.16343629]
[1641820883834,2.7188816,135.99,135.93,4.16343629]
[1641820887041,18.26431718,136.0,135.93,4.16343629]
[1641820887940,19.54543558,136.0,135.93,4.16343629]
[1641820888444,2.7188816,135.99,135.93,4.16343629]
[1641820889041,4.0,135.94,135.93,4.16343629]
[1641820889244,11.881,135.94,135.89,15.54543558]
[1641820889442,7.881,135.94,135.89,15.54543558]
[1641820889641,4.0,135.92,135.89,15.54543558]
[1641820889841,7.881,135.94,135.89,15.54543558]
[1641820890246,7.881,135.94,135.89,23.65743558]
[1641820890643,3.2937844,135.93,135.9,4.16468334]
[1641820891042,6.012666,135.93,135.9,4.16468334]
[1641820891444,2.926066,135.94,135.9,4.16468334]
[1641820891743,15.54543558,135.95,135.92,5.88569492]
[1641820891942,10.70067832,135.97,135.92,5.88569492]
[1641820892343,7.35402265,136.01,135.92,5.88569492]
[1641820892546,4.0,135.99,135.9,1.839]
[1641820892748,4.0,135.99,135.87,134.96573923]
[1641820892945,4.0,135.99,135.87,133.12773923]
[1641820893146,4.0,135.94,135.91,4.16432546]
[1641820893546,6.21932948,135.98,135.88,14.18257641]
[1641820893846,4.0,135.93,135.88,14.18257641]
[1641820894047,4.0,135.93,135.89,4.16432546]
[1641820894250,4.0,135.94,135.89,4.16432546]
[1641820894547,2.21932948,135.92,135.86,4.16432546]
[1641820894949,6.21932948,135.93,135.86,14.18736114]
[1641820895150,2.21932948,135.93,135.86,14.18736114]
[1641820895350,2.21932948,135.93,135.87,4.16432546]
[1641820895550,2.21932948,135.92,135.87,4.16432546]
[1641820895952,4.0,135.96,135.87,4.16432546]
[1641820896352,2.21940124,135.95,135.87,4.16432546]
[1641820897153,2.21940124,135.96,135.87,4.16432546]
[1641820898252,6.21940124,135.97,135.87,4.16432546]
[1641820898452,4.0,135.95,135.87,4.16432546]
[1641820898653,6.21940124,135.96,135.87,4.16432546]
[1641820899255,2.21940124,135.95,135.87,4.16432546]
[1641820899654,4.0,135.93,135.87,4.16432546]
[1641820900055,4.0,135.91,135.87,4.16432546]
[1641820900258,4.0,135.9,135.87,4.16432546]
[1641820900759,6.21940124,135.9,135.87,4.16432546]
[1641820900958,4.0,135.89,135.87,4.16432546]
[1641820901257,4.0,135.89,135.84,4.16432546]
[1641820901458,4.0,135.89,135.88,4.16432546]
[1641820901658,4.0,135.9,135.88,4.16432546]
[1641820901959,4.0,135.9,135.83,76.74693093]
[1641820901960,4.0,135.9,135.84,4.16432546]
[1641820902359,11.35781032,135.94,135.84,4.16432546]
[1641820902558,2.3067773,135.89,135.84,4.16432546]
[1641820902960,6.3067773,135.93,135.84,4.16432546]
[1641820903461,6.3067773,135.92,135.84,4.16432546]
[1641820903662,2.3067773,135.92,135.84,4.16432546]
[1641820904063,2.3067773,135.91,135.84,4.16432546]
[1641820904464,2.3067773,135.93,135.84,4.16432546]
[1641820906164,2.3067773,135.93,135.85,20.0]
[1641820906365,2.3067773,135.93,135.86,4.0]
[1641820906564,2.3067773,135.96,135.9,4.0]
[1641820906765,2.3067773,135.96,135.9,5.88643188]
[1641820906967,2.3067773,135.96,135.91,4.16432546]
[1641820907464,2.3067773,135.98,135.91,4.16432546]
[1641820908065,6.3067773,135.99,135.9,4.16432546]
[1641820908266,4.0,135.96,135.9,4.16432546]
[1641820908468,4.0,135.96,135.92,4.16432546]
[1641820908666,6.3067773,135.97,135.92,4.16432546]
[1641820908868,2.3067773,135.95,135.91,4.16432546]
[1641820909267,4.0,135.94,135.9,4.16432546]
[1641820909569,4.0,135.91,135.9,2.546e-05]
[1641820909867,7.435,135.91,135.82,108.89398509]
[1641820910067,7.435,135.91,135.82,174.73408509]
[1641820910270,4.0,135.9,135.82,174.73408509]
[1641820910667,4.0,135.88,135.82,174.73408509]
[1641820910867,10.418,135.88,135.82,65.8401]
[1641820911267,3.55604733,135.87,135.83,4.16626122]
[1641820911570,4.0,135.85,135.83,4.16626122]
[1641820911867,4.0,135.84,135.83,4.16626122]
[1641820912269,7.55604733,135.84,135.79,4.16626122]
[1641820912670,7.55604733,135.84,135.83,4.16626122]
[1641820912870,9.39604733,135.84,135.77,41.25768509]
[1641820913070,4.0,135.83,135.77,41.25768509]
[1641820913273,4.0,135.82,135.76,68.7516]
[1641820913471,13.081,135.82,135.74,110.37568509]
[1641820913973,4.0,135.78,135.75,4.16832174]
[1641820914172,4.0,135.77,135.75,4.16832174]
[1641820914571,4.0,135.77,135.75,14.1882938]
[1641820914774,4.0,135.76,135.75,14.1882938]
[1641820915172,3.5586286,135.76,135.75,10.01997206]
[1641820915473,3.5586286,135.76,135.72,41.25768509]
[1641820915872,3.5586286,135.76,135.67,71.4487]
[1641820916376,3.5586286,135.77,135.68,4.0]
[1641820916572,3.5586286,135.77,135.68,11.36349913]
[1641820916871,9.20449913,135.83,135.69,4.0]
[1641820916872,3.5586286,135.8,135.69,4.0]
[1641820917072,3.5586286,135.8,135.69,1.841]
[1641820917275,3.5586286,135.82,135.69,5.841]
[1641820917474,3.5586286,135.82,135.68,19.10048254]
[1641820917774,4.0,135.8,135.68,15.10048254]
[1641820917975,4.0,135.8,135.68,13.25948254]
[1641820918177,7.5586286,135.79,135.68,5.89598341]
[1641820918378,4.0,135.78,135.67,71.4487]
[1641820918779,3.5586286,135.77,135.67,71.4487]
[1641820918982,3.5586286,135.77,135.68,4.0]
[1641820919181,3.5586286,135.78,135.68,4.0]
[1641820919981,4.0,135.78,135.68,4.0]
[1641820920184,4.0,135.78,135.67,75.4487]
[1641820920381,6.406,135.78,135.67,71.4487]
[1641820920583,4.0,135.76,135.67,71.4487]
[1641820920781,3.5586286,135.77,135.67,71.4487]
[1641820920982,3.5586286,135.75,135.67,71.4487]
[1641820921182,16.3946286,135.75,135.67,71.4487]
[1641820921590,4.0,135.72,135.67,71.4487]
[1641820921786,12.603,135.72,135.67,71.4487]